bitfinex/quotes_SOLUSD_20241126
["timestamp","ask_amount","ask_price","bid_price","bid_amount"]
[1732587100840,30.0,237.86,237.85,12.73965208]
[1732587102660,30.0,237.86,237.85,16.94395208]
[1732587104351,30.0,237.86,237.85,40.72083608]
[1732587106554,30.0,237.86,237.85,27.981184]
[1732587106746,30.0,237.86,237.85,4.2043]
[1732587112358,30.0,237.86,237.84,12.73965208]
[1732587113873,30.0,237.86,237.85,4.2043]
[1732587116352,30.0,237.86,237.85,12.35303062]
[1732587118268,30.0,237.86,237.85,4.2043]
[1732587118771,30.0,237.86,237.79,8.14873062]
[1732587119074,30.0,237.86,237.81,8.14873062]
[1732587119866,30.0,237.86,237.77,20.0]
[1732587120063,30.0,237.86,237.79,8.14873062]
[1732587120266,30.0,237.86,237.8,4.2052]
[1732587121851,30.0,237.86,237.79,16.94796993]
[1732587122676,30.0,237.86,237.81,12.74266993]
[1732587122880,30.0,237.86,237.79,4.2053]
[1732587122881,30.0,237.86,237.85,12.74266993]
[1732587124984,30.0,237.86,237.85,16.94696993]
[1732587125476,30.0,237.86,237.85,40.84934393]
[1732587125685,6.2646,238.01,237.9,23.776884]
[1732587125855,16.4901,238.02,237.97,12.74266993]
[1732587126258,16.4901,238.02,237.99,12.74266993]
[1732587127360,16.4901,238.02,237.96,4.2022]
[1732587127563,30.0,237.99,237.95,12.74266993]
[1732587128480,30.0,237.99,237.97,12.74266993]
[1732587129288,30.0,237.99,237.98,4.202]
[1732587130685,30.0,237.99,237.98,27.978884]
[1732587132186,30.0,237.99,237.98,4.202]
[1732587133683,30.0,237.99,237.93,12.74266993]
[1732587133984,30.0,237.99,237.95,12.74266993]
[1732587135461,30.0,237.99,237.97,16.94466993]
[1732587136573,30.0,237.99,237.98,23.776884]
[1732587138374,30.0,237.99,237.97,16.94466993]
[1732587141988,30.0,237.99,237.98,23.776884]
[1732587142298,30.0,237.99,237.98,31.91758761]
[1732587143287,30.0,237.99,237.98,36.11958761]
[1732587146104,6.2646,238.12,237.99,0.12549]
[1732587146400,15.0305,238.13,238.11,8.14070361]
[1732587146581,15.0305,238.13,238.09,8.14070361]
[1732587146889,6.3041,238.1,237.99,5.42543305]
[1732587147069,6.3041,238.1,238.01,8.14070361]
[1732587147274,6.3041,238.1,238.05,8.14070361]
[1732587147493,6.3041,238.1,238.03,8.14070361]
[1732587148076,30.0,238.08,238.04,4.2009]
[1732587150277,38.14070361,238.08,237.98,8.14070361]
[1732587150482,8.14070361,238.06,237.98,8.14070361]
[1732587150694,30.0,238.03,237.98,8.14070361]
[1732587151077,30.0,238.03,238.0,8.14070361]
[1732587152297,30.0,238.03,238.02,8.14070361]
[1732587154410,30.0,238.03,238.02,12.34200361]
[1732587154584,30.0,238.03,238.02,4.2013]
[1732587155681,46.4219,238.03,237.97,4.2022]
[1732587155889,8.14070361,238.02,237.96,21.022986]
[1732587156096,38.14070361,238.02,237.96,21.022986]
[1732587156300,42.72657781,238.02,237.96,21.022986]
[1732587156489,30.0,238.02,238.01,12.72657781]
[1732587157098,17.27342219,238.01,238.0,12.72657781]
[1732587159790,17.27342219,238.01,238.0,16.92817781]
[1732587160199,17.27342219,238.01,238.0,40.70506181]
[1732587160937,17.27342219,238.01,238.0,12.72657781]
[1732587162512,17.27342219,238.01,238.0,16.92817781]
[1732587163086,17.27342219,238.01,238.0,4.2016]
[1732587163899,17.27342219,238.01,237.98,16.92847781]
[1732587164892,17.27342219,238.01,237.97,12.726578]
[1732587165599,17.27342219,238.01,237.95,4.2025]
[1732587166409,17.27342219,238.01,237.94,4.2027]
[1732587167884,17.27342219,238.01,237.95,16.92897781]
[1732587168711,17.27342219,238.01,237.97,12.72657781]
[1732587169926,17.27342219,238.01,237.98,4.202]
[1732587171218,17.27342219,238.01,237.96,4.2023]
[1732587172802,30.0,238.01,237.94,4.2025]
[1732587173515,30.0,238.01,237.93,12.72657781]
[1732587173899,30.0,238.01,237.93,16.92937781]
[1732587174903,30.0,237.99,237.93,16.92937781]
[1732587177322,30.0,237.99,237.91,12.72657781]
[1732587177503,12.72657781,237.93,237.86,16.826928]
[1732587177709,12.72657781,237.93,237.85,16.93077781]
[1732587178595,30.0,237.89,237.87,16.93047781]
[1732587182126,30.0,237.89,237.88,23.776884]
[1732587182341,30.0,237.89,237.88,24.027864]
[1732587182504,21.7976,238.04,237.92,23.776884]
[1732587182822,21.7976,238.04,237.98,12.72657781]
[1732587183020,21.7976,238.04,237.99,4.2018]
[1732587184528,30.0,238.0,237.99,4.2018]
[1732587187631,28.9758,238.0,237.99,4.2018]
[1732587190330,28.9758,238.0,237.99,28.229664]
[1732587190519,15.0425,238.15,238.03,20.0]
[1732587190709,15.0425,238.15,238.1,12.72657781]
[1732587191033,6.1638,238.18,238.1,12.72657781]
[1732587191433,12.72657781,238.17,238.1,12.72657781]
[1732587191802,12.72657781,238.17,238.11,4.1997]
[1732587192207,6.1638,238.18,238.09,4.1999]
[1732587192208,12.72657781,238.15,238.09,4.1999]
[1732587192403,30.0,238.11,238.09,4.1999]
[1732587192620,23.776884,238.1,238.0,4.2015]
[1732587192814,12.72657781,238.05,237.96,10.5059]
[1732587193007,12.72657781,238.05,237.96,23.23247781]
[1732587193231,12.72657781,238.03,237.98,4.2019]
[1732587193629,30.0,238.02,237.98,4.2019]
[1732587193808,30.0,238.02,237.94,12.72657781]
[1732587193809,30.0,238.02,237.95,4.2025]
[1732587195731,30.0,238.02,237.96,12.72657781]
[1732587195946,30.0,238.02,237.98,32.72657781]
[1732587197913,30.0,238.02,238.0,12.72657781]
[1732587198515,30.0,238.02,237.88,14.7133]
[1732587198739,12.72657781,238.0,237.92,12.72657781]
[1732587199032,30.0,237.99,237.92,12.72657781]
[1732587199251,30.0,237.99,237.88,14.7133]
[1732587199252,30.0,237.99,237.94,12.72657781]
[1732587199536,30.0,237.99,237.98,12.72657781]
[1732587200547,30.0,237.99,237.98,16.92857781]
[1732587201117,30.0,237.99,237.98,4.202]
[1732587201330,30.0,237.99,237.91,12.72657781]
[1732587201532,12.72657781,237.98,237.92,4.203]
[1732587201819,30.0,237.96,237.92,4.203]
[1732587202715,30.0,237.96,237.93,12.72657781]
[1732587203249,30.0,237.96,237.95,12.72657781]
[1732587203740,30.0,237.96,237.93,12.72657781]
[1732587204845,30.0,237.96,237.94,4.2027]
[1732587207446,134.5,238.14,237.95,48.25175562]
[1732587207637,10.0,238.2,237.95,48.25175562]
[1732587207638,15.0303,238.21,238.12,12.72657781]
[1732587207840,15.0303,238.21,237.98,20.0]
[1732587207841,12.72657781,238.18,238.1,12.72657781]
[1732587208146,12.72657781,238.16,238.08,12.72657781]
[1732587209618,12.72657781,238.16,238.09,4.2]
[1732587209821,20.0,238.13,238.0,10.504]
[1732587210143,12.72657781,238.02,237.99,4.2018]
[1732587210327,12.72657781,238.02,237.96,4.2022]
[1732587211124,30.0,238.0,237.96,4.2022]
[1732587211626,30.0,238.0,237.94,12.72657781]
[1732587212542,30.0,238.0,237.94,4.2027]
[1732587212723,30.0,238.0,237.96,20.36041796]
[1732587214245,30.0,238.0,237.94,20.36041796]
[1732587214436,30.0,238.0,237.95,4.2024]
[1732587215634,30.0,238.0,237.97,20.36041796]
[1732587217634,30.0,238.0,237.98,4.202]
[1732587218325,30.0,238.0,237.97,20.36041796]
[1732587218528,30.0,238.0,237.93,20.36041796]
[1732587219824,50.36041796,238.0,237.93,24.56321796]
[1732587220039,20.0,237.95,237.89,20.36041796]
[1732587220346,154.5,237.95,237.87,20.36041796]
[1732587220654,30.0,237.93,237.89,20.36041796]
[1732587221757,30.0,237.93,237.92,20.36041796]
[1732587228444,30.0,237.93,237.92,24.56341796]
[1732587234364,30.0,237.93,237.92,12.73160864]
[1732587235241,30.0,237.93,237.91,12.73160864]
[1732587235871,30.0,237.93,237.55,61.69602911]
[1732587235872,20.0,237.89,237.81,4.205]
[1732587236074,183.54630864,237.92,237.82,12.73160864]
[1732587236075,20.0,237.87,237.82,12.73160864]
[1732587236563,50.0,237.87,237.83,12.73160864]
[1732587239247,20.0,237.82,237.71,32.71986]
[1732587239462,20.0,237.82,237.67,6.4428]
[1732587239463,30.0,237.78,237.76,12.73160864]
[1732587240252,30.0,237.78,237.77,12.73160864]
[1732587240765,30.0,237.78,237.74,23.776884]
[1732587240976,30.0,237.78,237.77,12.73160864]
[1732587243161,30.0,237.78,237.76,12.73160864]
[1732587243362,30.0,237.78,237.77,12.73160864]
[1732587243672,30.0,237.78,237.76,12.73160864]
[1732587244665,30.0,237.78,237.77,12.73160864]
[1732587246353,30.0,237.78,237.76,12.73160864]
[1732587246864,30.0,237.78,237.77,12.73160864]
[1732587247369,30.0,237.78,237.77,16.93730864]
[1732587249878,30.0,237.78,237.77,40.71419264]
[1732587251367,30.0,237.78,237.77,16.93730864]
[1732587255662,30.0,237.78,237.77,40.71419264]
[1732587256679,134.5,237.87,237.77,40.71419264]
[1732587256680,134.5,237.87,237.78,23.776884]
[1732587256882,149.7926,237.94,237.86,12.73160864]
[1732587257181,15.2926,237.94,237.89,12.73160864]
[1732587257369,15.2926,237.94,237.88,12.73160864]
[1732587258766,30.0,237.89,237.88,12.73160864]
[1732587260182,30.0,237.89,237.85,12.73160864]
[1732587260557,30.0,237.89,237.86,12.73160864]
[1732587260762,30.0,237.89,237.87,12.73160864]
[1732587261364,30.0,237.89,237.82,12.73160864]
[1732587262087,30.0,237.89,237.82,16.93630864]
[1732587265470,42.73160864,237.89,237.8,12.73160864]
[1732587266175,42.73160864,237.89,237.76,14.7206]
[1732587266176,12.73160864,237.87,237.78,12.73160864]
[1732587266489,21.75160864,237.85,237.78,12.73160864]
[1732587266788,21.75160864,237.85,237.76,16.93750864]
[1732587267192,21.75160864,237.85,237.78,12.73160864]
[1732587267363,9.02,237.85,237.78,12.73160864]
[1732587267765,9.02,237.85,237.79,4.2053]
[1732587267981,9.02,237.85,237.8,12.73160864]
[1732587268680,9.02,237.85,237.82,12.73160864]
[1732587269764,9.02,237.85,237.82,16.93630864]
[1732587271995,9.02,237.85,237.8,12.73160864]
[1732587272966,9.02,237.85,237.78,12.73160864]
[1732587273172,21.75160864,237.85,237.78,12.73160864]
[1732587274491,21.75160864,237.85,237.78,16.93700864]
[1732587276390,9.02,237.85,237.78,16.93700864]
[1732587277992,134.5,237.84,237.78,16.93700864]
[1732587278170,30.0,237.8,237.78,16.93700864]
[1732587281581,147.23160864,237.79,237.64,36.9888]
[1732587281785,30.0,237.77,237.71,12.73160864]
[1732587282293,30.0,237.77,237.71,8.1610603]
[1732587282472,30.0,237.77,237.72,8.1610603]
[1732587283178,30.0,237.77,237.73,4.2064]
[1732587284277,30.0,237.77,237.72,12.75130673]
[1732587284483,30.0,237.77,237.73,12.75130673]
[1732587285184,12.75130673,237.74,237.65,4.2078]
[1732587285384,42.75130673,237.73,237.66,12.75130673]
[1732587285604,12.75130673,237.72,237.65,4.2078]
[1732587285798,12.75130673,237.72,237.65,16.95910673]
[1732587285992,12.75130673,237.7,237.65,4.2078]
[1732587286305,12.75130673,237.7,237.51,39.1351837]
[1732587286306,12.75130673,237.67,237.6,16.96000673]
[1732587286495,147.25130673,237.69,237.62,12.75130673]
[1732587286691,12.75130673,237.67,237.6,16.96000673]
[1732587287091,30.0,237.65,237.6,16.96000673]
[1732587287403,30.0,237.65,237.61,12.75130673]
[1732587287891,30.0,237.65,237.61,16.95980673]
[1732587288091,30.0,237.65,237.61,4.2085]
[1732587289597,42.75130673,237.65,237.58,12.75130673]
[1732587290604,134.5,237.64,237.58,12.75130673]
[1732587290790,30.0,237.62,237.58,12.75130673]
[1732587291195,30.0,237.62,237.55,16.96080673]
[1732587291493,12.75130673,237.61,237.53,16.96110673]
[1732587291803,30.0,237.59,237.53,16.96110673]
[1732587292297,30.0,237.59,237.54,4.7021752]
[1732587292503,30.0,237.59,237.55,12.75130673]
[1732587293912,30.0,237.59,237.55,16.96080673]
[1732587294203,30.0,237.59,237.55,12.75130673]
[1732587294596,30.0,237.59,237.55,16.96090673]
[1732587295502,30.0,237.59,237.55,12.75130673]
[1732587296208,17.24869327,237.55,237.54,4.7021752]
[1732587296383,17.24869327,237.55,237.54,17.45348193]
[1732587296996,47.24869327,237.55,237.54,17.45348193]
[1732587297398,47.24869327,237.55,237.54,4.7021752]
[1732587297601,47.24869327,237.55,237.54,17.45348193]
[1732587298006,12.54651807,237.54,237.5,10.5259]
[1732587298316,12.54651807,237.54,237.53,36.52819073]
[1732587299415,12.54651807,237.54,237.53,40.73809073]
[1732587300605,17.24869327,237.55,237.53,40.73809073]
[1732587300803,17.24869327,237.55,237.54,23.776884]
[1732587301388,134.5,237.63,237.54,36.52819073]
[1732587301588,134.5,237.69,237.62,12.75130673]
[1732587301810,134.5,237.69,237.65,12.75130673]
[1732587302605,30.0,237.66,237.65,12.75130673]
[1732587303543,30.0,237.66,237.62,12.75130673]
[1732587303688,30.0,237.66,237.63,12.75130673]
[1732587303888,30.0,237.66,237.65,12.75130673]
[1732587304994,30.0,237.66,237.65,16.95910673]
[1732587308033,30.0,237.66,237.65,40.73599073]
[1732587308908,134.5,237.78,237.66,23.776884]
[1732587309111,134.5,237.8,237.77,12.75130673]
[1732587309312,134.5,237.79,237.75,12.75130673]
[1732587309610,134.5,237.79,237.74,12.75130673]
[1732587310606,134.5,237.79,237.75,12.75130673]
[1732587311049,30.0,237.76,237.75,12.75130673]
[1732587311527,30.0,237.76,237.74,12.75130673]
[1732587312915,30.0,237.76,237.75,12.75130673]
[1732587313824,30.0,237.76,237.74,12.75130673]
[1732587314128,30.0,237.76,237.69,4.2071]
[1732587314299,177.25130673,237.76,237.69,4.2071]
[1732587314504,164.5,237.76,237.71,12.75130673]
[1732587314705,164.5,237.76,237.7,12.75130673]
[1732587315135,164.5,237.76,237.71,4.2068]
[1732587315309,164.5,237.76,237.7,16.95820673]
[1732587317013,164.5,237.76,237.7,12.75130673]
[1732587317831,134.5,237.75,237.68,12.75130673]
[1732587318135,30.0,237.74,237.68,16.95860673]
[1732587318431,30.0,237.74,237.7,12.75130673]
[1732587320342,30.0,237.74,237.69,4.207]
[1732587320825,30.0,237.74,237.68,8.16377974]
[1732587321011,20.0,237.71,237.61,4.2085]
[1732587321209,50.0,237.7,237.63,8.16377974]
[1732587321844,50.0,237.7,237.63,12.37177974]
[1732587322144,50.0,237.7,237.67,8.16377974]
[1732587322343,30.0,237.7,237.63,4.208]
[1732587322641,30.0,237.7,237.64,8.16377974]
[1732587322841,30.0,237.7,237.66,8.16377974]
[1732587323217,30.0,237.7,237.68,8.16377974]
[1732587323927,30.0,237.7,237.69,4.2071]
[1732587325744,30.0,237.7,237.68,8.16377974]
[1732587326446,30.0,237.7,237.67,4.2073]
[1732587329128,30.0,237.7,237.68,8.16377974]
[1732587330227,30.0,237.7,237.69,4.2071]
[1732587330835,30.0,237.7,237.66,8.16377974]
[1732587331039,30.0,237.7,237.67,4.2074]
[1732587334525,30.0,237.7,237.57,10.5229]
[1732587334732,134.5,237.69,237.61,8.16377974]
[1732587335226,134.5,237.69,237.57,10.5229]
[1732587335227,142.66377974,237.69,237.6,8.16377974]
[1732587336740,142.66377974,237.69,237.6,12.37237974]
[1732587337056,8.16377974,237.67,237.6,12.37237974]
[1732587337851,149.16057974,237.69,237.6,12.37237974]
[1732587338229,134.5,237.68,237.6,12.37237974]
[1732587340046,134.5,237.67,237.6,12.37237974]
[1732587340947,142.66377974,237.67,237.6,12.37237974]
[1732587341155,134.5,237.67,237.6,12.37237974]
[1732587344256,134.5,237.68,237.6,12.37237974]
[1732587345645,8.16377974,237.62,237.47,2.19482332]
[1732587345847,134.5,237.61,237.54,8.16377974]
[1732587346067,134.5,237.6,237.54,8.16377974]
[1732587347665,134.5,237.6,237.53,12.37367974]
[1732587349350,134.5,237.6,237.54,8.16377974]
[1732587350171,134.5,237.59,237.54,8.16377974]
[1732587350357,134.5,237.59,237.48,10.5269]
[1732587350557,134.5,237.6,237.52,8.16377974]
[1732587350759,134.5,237.6,237.5,23.776884]
[1732587351057,134.5,237.6,237.53,8.16377974]
[1732587351248,134.5,237.59,237.53,8.16377974]
[1732587351564,134.5,237.65,237.58,8.16377974]
[1732587351871,134.5,237.66,237.58,8.16377974]
[1732587352566,134.5,237.66,237.59,4.2089]
[1732587352966,20.0,237.63,237.59,4.2089]
[1732587354576,20.0,237.58,237.52,8.16377974]
[1732587355654,20.0,237.58,237.48,10.5271]
[1732587355876,20.0,237.58,237.5,8.16377974]
[1732587356947,20.0,237.58,237.51,4.2103]
[1732587358273,20.0,237.58,237.52,8.16377974]
[1732587358460,20.0,237.58,237.51,8.16377974]
[1732587359278,154.5,237.58,237.51,8.16377974]
[1732587360070,154.5,237.58,237.52,4.2101]
[1732587360975,154.5,237.58,237.54,8.16377974]
[1732587362274,154.5,237.58,237.54,12.37347974]
[1732587362572,134.5,237.58,237.56,8.16377974]
[1732587363960,134.5,237.58,237.54,12.37347974]
[1732587364483,134.5,237.58,237.56,8.16377974]
[1732587364770,150.7855,237.65,237.57,8.16377974]
[1732587364976,16.2855,237.65,237.59,8.16377974]
[1732587365674,42.9448,237.7,237.54,14.7342]
[1732587365675,142.66377974,237.69,237.61,8.16377974]
[1732587366444,142.66377974,237.69,237.62,4.2083]
[1732587366649,134.5,237.69,237.62,12.37207974]
[1732587366849,134.5,237.69,237.64,8.16377974]
[1732587367780,134.5,237.69,237.63,12.37177974]
[1732587368276,134.5,237.69,237.63,4.208]
[1732587368781,134.5,237.69,237.63,12.37177974]
[1732587369153,134.5,237.69,237.63,4.208]
[1732587370491,8.16377974,237.68,237.63,4.208]
[1732587370653,8.16377974,237.67,237.63,4.208]
[1732587371276,8.16377974,237.67,237.61,4.2085]
[1732587371472,8.16377974,237.68,237.61,12.37227974]
[1732587372267,134.5,237.69,237.61,12.37227974]
[1732587372660,134.5,237.69,237.63,8.16377974]
[1732587373584,134.5,237.69,237.64,4.208]
[1732587374158,38.16377974,237.7,237.64,4.208]
[1732587374772,8.16377974,237.66,237.56,10.5234]
[1732587374979,8.16377974,237.66,237.57,8.16377974]
[1732587375583,8.16377974,237.66,237.58,4.2091]
[1732587376581,8.16377974,237.66,237.53,12.37357974]
[1732587376582,20.0,237.59,237.53,12.37357974]
[1732587376869,8.16377974,237.6,237.53,12.37357974]
[1732587377179,8.16377974,237.6,237.53,4.2098]
[1732587383275,30.0,237.54,237.53,4.2098]
[1732587386895,30.0,237.54,237.53,8.16377974]
[1732587388872,30.0,237.54,237.53,12.37367974]
[1732587389289,30.0,237.54,237.53,36.15056374]
[1732587396771,30.0,237.54,237.53,27.986784]
[1732587396970,30.0,237.54,237.53,36.15056374]
[1732587398086,30.0,237.54,237.53,4.2099]
[1732587405198,30.0,237.54,237.52,8.16377974]
[1732587405199,25.7901,237.53,237.52,8.16377974]
[1732587406198,25.7901,237.53,237.5,8.16377974]
[1732587406376,30.0,237.52,237.5,8.16377974]
[1732587407201,30.0,237.52,237.5,12.37417974]
[1732587407410,30.0,237.51,237.5,12.37417974]
[1732587409198,17.62582026,237.5,237.45,10.5284]
[1732587409389,17.62582026,237.5,237.46,23.776884]
[1732587409701,17.62582026,237.5,237.49,8.16377974]
[1732587410480,17.62582026,237.5,237.49,12.37447974]
[1732587410681,17.62582026,237.5,237.49,4.2107]
[1732587410884,17.62582026,237.5,237.46,23.776884]
[1732587410885,17.62582026,237.5,237.46,8.16377974]
[1732587412809,17.62582026,237.5,237.47,4.211]
[1732587413108,17.62582026,237.5,237.48,8.16377974]
[1732587414802,17.62582026,237.5,237.49,4.2107]
[1732587415292,17.62582026,237.5,237.49,27.987584]
[1732587425315,17.62582026,237.5,237.49,12.37447974]
[1732587428099,17.62582026,237.5,237.49,36.15136374]
[1732587431612,17.62582026,237.5,237.49,27.987584]
[1732587431910,20.0,237.59,237.5,23.776884]
[1732587432112,20.0,237.59,237.54,8.16377974]
[1732587432327,20.0,237.59,237.55,4.2096]
[1732587432825,16.1943,237.62,237.58,8.16377974]
[1732587432996,16.1943,237.62,237.6,8.16377974]
[1732587433197,6.1376,237.64,237.6,8.16377974]
[1732587433924,150.6513,237.67,237.62,8.16377974]
[1732587434107,16.1513,237.67,237.62,8.16377974]
[1732587434314,16.1513,237.67,237.62,12.37207974]
[1732587434637,16.1513,237.67,237.62,4.2083]
[1732587435006,8.16377974,237.66,237.56,4.2094]
[1732587435215,8.16377974,237.64,237.56,4.2094]
[1732587435521,8.16377974,237.64,237.57,8.16377974]
[1732587436440,8.16377974,237.64,237.53,23.776884]
[1732587436619,8.11230311,237.64,237.55,8.16377974]
[1732587436816,8.16377974,237.63,237.55,8.16377974]
[1732587437125,8.16377974,237.61,237.52,4.2101]
[1732587437314,8.16377974,237.61,237.52,12.37387974]
[1732587437315,20.0,237.58,237.52,12.37387974]
[1732587438664,20.0,237.58,237.54,8.16377974]
[1732587438820,20.0,237.6,237.54,8.16377974]
[1732587439137,20.0,237.58,237.53,8.16377974]
[1732587439516,134.5,237.64,237.55,8.16377974]
[1732587439717,8.16377974,237.63,237.55,8.16377974]
[1732587440531,16.1513,237.67,237.53,23.776884]
[1732587440532,20.0,237.62,237.59,8.16377974]
[1732587441016,20.0,237.64,237.59,8.16377974]
[1732587441220,142.66377974,237.67,237.59,8.16377974]
[1732587441543,13.24922873,237.87,237.59,8.16377974]
[1732587441544,6.60660323,238.01,237.94,20.0]
[1732587441707,10.4924752,238.14,237.91,10.0]
[1732587441708,0.4924752,238.14,238.01,20.0]
[1732587441906,0.4924752,238.14,238.11,8.16377974]
[1732587442407,0.4924752,238.14,238.04,23.776884]
[1732587442612,8.16377974,238.13,238.02,8.16377974]
[1732587442833,8.16377974,238.13,237.97,27.979084]
[1732587442834,8.16377974,238.13,238.04,8.16377974]
[1732587443432,8.16377974,238.13,238.0,8.16377974]
[1732587443433,8.16377974,238.11,238.0,8.16377974]
[1732587443641,8.16377974,238.09,238.0,8.16377974]
[1732587444324,12.7188814,238.11,238.01,12.7188814]
[1732587445042,12.7188814,238.11,238.03,12.7188814]
[1732587445739,20.0,238.1,238.05,12.7188814]
[1732587446617,20.0,238.1,237.95,6.6471]
[1732587446618,20.0,238.09,238.0,12.7188814]
[1732587446818,12.7188814,238.07,238.0,12.7188814]
[1732587447217,32.7188814,238.09,238.0,12.7188814]
[1732587448036,12.7188814,238.03,237.96,12.7188814]
[1732587448846,20.0,238.02,237.96,12.7188814]
[1732587450217,20.0,238.02,237.94,12.7188814]
[1732587453141,20.0,238.02,237.96,12.7188814]
[1732587457720,20.0,238.02,237.94,12.7188814]
[1732587459236,12.7188814,237.99,237.9,12.7188814]
[1732587459420,12.7188814,237.99,237.87,12.7188814]
[1732587459421,12.7188814,237.94,237.87,12.7188814]
[1732587459621,12.7188814,237.93,237.86,12.7188814]
[1732587460238,12.7188814,237.94,237.87,12.7188814]
[1732587460421,12.7188814,237.94,237.86,12.7188814]
[1732587460619,12.7188814,237.94,237.87,12.7188814]
[1732587460834,12.7188814,237.95,237.88,12.7188814]
[1732587461321,12.7188814,237.96,237.88,12.7188814]
[1732587462141,32.7188814,237.95,237.88,12.7188814]
[1732587463050,32.7188814,237.95,237.86,12.7188814]
[1732587463051,12.7188814,237.93,237.86,12.7188814]
[1732587464447,12.7188814,237.87,237.79,12.7188814]
[1732587464740,22.9418,237.95,237.72,12.7188814]
[1732587464741,12.7188814,237.88,237.82,12.7188814]
[1732587465637,20.0,237.88,237.82,12.7188814]
[1732587465834,12.7188814,237.9,237.82,12.7188814]
[1732587467234,12.7188814,237.86,237.79,4.2052]
[1732587468144,12.7188814,237.84,237.76,12.7188814]
[1732587468349,12.7188814,237.82,237.75,4.2059]
[1732587468543,12.7188814,237.82,237.74,12.7188814]
[1732587469933,12.7188814,237.83,237.75,12.7188814]
[1732587471334,12.7188814,237.81,237.74,12.7188814]
[1732587471537,32.7188814,237.83,237.76,12.7188814]
[1732587472248,20.0,237.82,237.76,12.7188814]
[1732587472551,20.0,237.82,237.78,12.7188814]
[1732587473351,20.0,237.82,237.76,12.7188814]
[1732587473859,134.5,237.86,237.8,12.7188814]
[1732587474028,20.0,237.84,237.8,12.7188814]
[1732587475433,34.0082814,237.87,237.8,12.7188814]
[1732587475835,20.0,237.84,237.8,12.7188814]
[1732587476040,12.7188814,237.83,237.74,12.7188814]
[1732587476248,12.7188814,237.81,237.72,16.9254814]
[1732587476557,12.7188814,237.79,237.72,16.9254814]
[1732587477429,12.7188814,237.81,237.72,16.9254814]
[1732587477944,12.7188814,237.81,237.72,4.2066]
[1732587478155,20.0,237.8,237.75,12.7188814]
[1732587479841,134.5,237.83,237.78,12.7188814]
[1732587480046,134.5,237.83,237.8,12.7188814]
[1732587480261,21.2894,237.87,237.8,12.7188814]
[1732587480757,21.2894,237.87,237.82,12.7188814]
[1732587481931,15.2623,237.87,237.8,12.7188814]
[1732587482245,15.2623,237.87,237.68,8.07820165]
[1732587482246,20.0,237.81,237.76,12.7188814]
[1732587482556,20.0,237.81,237.74,12.7188814]
[1732587482752,12.7188814,237.8,237.72,12.7188814]
[1732587483952,12.7188814,237.74,237.66,21.97116399]
[1732587484163,8.0220547,237.72,237.65,41.90909095]
[1732587484330,12.7188814,237.71,237.64,21.15757904]
[1732587484529,12.7188814,237.68,237.61,12.7188814]
[1732587484844,20.0,237.72,237.59,4.2089]
[1732587484845,134.5,237.71,237.65,12.7188814]
[1732587485042,134.5,237.71,237.59,26.12556725]
[1732587485043,134.5,237.71,237.7,12.7188814]
[1732587485250,134.5,237.77,237.7,12.7188814]
[1732587485550,12.7188814,237.75,237.67,12.7188814]
[1732587485757,134.5,237.76,237.71,12.7188814]
[1732587487758,10.73369488,237.78,237.71,12.7188814]
[1732587487759,134.5,237.77,237.71,12.7188814]
[1732587488756,134.5,237.77,237.69,12.7188814]
[1732587488757,70.0,237.75,237.69,12.7188814]
[1732587488936,70.0,237.75,237.56,16.5084]
[1732587488937,134.5,237.74,237.56,16.5084]
[1732587489137,20.0,237.68,237.63,12.7188814]
[1732587489551,134.5,237.7,237.63,12.7188814]
[1732587490459,134.5,237.7,237.65,12.7188814]
[1732587491192,4.71240107,237.69,237.65,12.7188814]
[1732587492034,30.0,237.67,237.63,12.7188814]
[1732587493149,30.0,237.66,237.63,12.7188814]
[1732587493335,30.0,237.66,237.53,4.2098]